bitfinex/quotes_ETHUSD_20240926
["timestamp","ask_amount","ask_price","bid_price","bid_amount"]
[1727329822188,0.8486759,2618.6,2618.5,0.05002948]
[1727329822189,3.9037359,2618.6,2618.5,0.05002948]
[1727329822390,0.8014,2618.5,2617.9,3.05582]
[1727329822631,0.09549654,2618.4,2617.9,3.05582]
[1727329822815,0.09549654,2618.4,2617.9,3.05581]
[1727329822999,0.09549654,2618.4,2618.0,3.0557]
[1727329823388,0.09549654,2618.4,2617.9,3.05581]
[1727329823600,0.09549654,2618.4,2617.9,6.11162]
[1727329824101,0.09549654,2618.4,2617.8,3.6448]
[1727329824287,0.09549654,2618.4,2618.0,3.05575]
[1727329824520,0.84877315,2618.4,2618.0,3.05575]
[1727329825024,0.09549654,2618.4,2618.2,3.05542]
[1727329825260,0.09548902,2618.6,2618.3,0.6448]
[1727329825532,0.09548902,2618.6,2618.1,3.05558]
[1727329825701,0.09548902,2618.6,2618.1,3.70038]
[1727329826232,3.90554892,2618.6,2618.1,3.70038]
[1727329827218,3.90554892,2618.6,2618.1,6.75596]
[1727329827398,3.90554892,2618.6,2618.1,3.05558]
[1727329827615,0.8065,2618.5,2618.1,3.05558]
[1727329831548,0.90199098,2618.5,2618.0,3.05574]
[1727329831842,3.95718098,2618.5,2618.0,3.05574]
[1727329832344,3.95718098,2618.5,2618.0,4.66316984]
[1727329832545,0.90199098,2618.5,2618.0,4.66316984]
[1727329833105,0.90199098,2618.5,2618.1,3.05565]
[1727329834010,0.90199098,2618.5,2618.0,1.60742984]
[1727329834204,0.90199098,2618.5,2618.0,4.66307984]
[1727329834405,0.90199098,2618.5,2618.1,3.05562]
[1727329834605,0.90199098,2618.5,2617.9,3.70059]
[1727329834849,3.95723098,2618.5,2618.0,1.60742984]
[1727329835219,3.95723098,2618.5,2618.0,4.66318984]
[1727329835841,3.95723098,2618.5,2618.1,0.1023081]
[1727329836498,3.05547,2618.3,2618.1,0.1023081]
[1727329836645,0.77672909,2618.4,2617.7,5.30826984]
[1727329836646,3.15103193,2618.2,2617.7,5.30826984]
[1727329836846,3.91703193,2618.2,2617.8,0.10236232]
[1727329837793,0.86150193,2618.2,2617.8,3.15835232]
[1727329840943,0.86150193,2618.2,2617.9,3.05587]
[1727329841255,0.86150193,2618.2,2617.9,0.10235217]
[1727329844613,0.86150193,2618.2,2617.9,3.15822217]
[1727329845165,0.766,2618.2,2617.9,0.10235217]
[1727329845618,0.766,2618.2,2617.8,3.05594]
[1727329845819,0.766,2618.2,2618.0,0.10234202]
[1727329846113,0.766,2618.2,2618.1,0.10233186]
[1727329846316,0.766,2618.2,2617.8,3.05594]
[1727329846513,0.766,2618.2,2618.1,0.10233186]
[1727329846736,1.15769201,2618.2,2617.8,3.05594]
[1727329846917,0.766,2618.2,2618.1,0.10233186]
[1727329847209,0.766,2618.2,2617.8,3.05594]
[1727329847411,3.82153,2618.2,2618.1,0.10248233]
[1727329847615,3.82153,2618.2,2617.6,7.66359984]
[1727329847616,3.44735201,2618.1,2617.6,7.66359984]
[1727329848039,0.8284,2618.0,2617.6,7.66359984]
[1727329848244,0.8284,2618.0,2617.6,4.60742984]
[1727329848443,4.6173472,2618.0,2617.6,4.60742984]
[1727329849547,1.65705734,2618.0,2617.6,7.66359984]
[1727329849751,0.92391014,2618.0,2617.7,3.0561]
[1727329850058,0.92391014,2618.0,2617.8,1.60742984]
[1727329850551,0.8284,2618.0,2617.8,1.60742984]
[1727329850918,0.8284,2618.0,2617.9,0.10284325]
[1727329851126,1.22634375,2618.0,2617.7,4.66346984]
[1727329851347,1.22634375,2618.0,2617.9,0.10284325]
[1727329851555,1.22634375,2618.0,2617.7,1.60742984]
[1727329851711,1.22634375,2618.0,2617.9,0.10278779]
[1727329851909,1.22634375,2618.0,2617.7,1.60742984]
[1727329852211,1.22634375,2618.0,2617.9,0.10278779]
[1727329852543,0.8284,2618.0,2617.9,0.10278779]
[1727329852707,0.8284,2618.0,2617.7,4.66352984]
[1727329852929,0.8284,2618.0,2617.9,0.10278779]
[1727329853157,0.8284,2618.0,2617.7,4.66352984]
[1727329853304,0.8284,2618.0,2617.9,0.10278779]
[1727329853503,0.8284,2618.0,2617.7,4.66352984]
[1727329853732,0.8284,2618.0,2617.9,0.10278779]
[1727329853904,0.09550748,2618.1,2617.8,3.15878795]
[1727329854108,0.09550748,2618.1,2617.9,0.10278779]
[1727329854537,0.09550748,2618.1,2617.7,4.66345984]
[1727329854741,0.09550748,2618.1,2618.0,0.10277764]
[1727329854914,0.48962123,2618.1,2617.8,3.05598]
[1727329855121,0.48962123,2618.1,2618.0,0.10277764]
[1727329855315,0.48962123,2618.1,2617.8,3.05598]
[1727329855556,0.48962123,2618.1,2618.0,0.10277764]
[1727329855775,0.48962123,2618.1,2617.7,7.71950984]
[1727329855914,0.09550748,2618.1,2618.0,0.10277764]
[1727329856120,0.09550748,2618.1,2617.7,7.71950984]
[1727329856306,0.09550748,2618.1,2618.0,0.10277764]
[1727329856510,0.48961523,2618.1,2617.8,3.05599]
[1727329856743,0.48961523,2618.1,2618.0,0.10276179]
[1727329856957,0.48961523,2618.1,2617.8,3.05599]
[1727329857123,0.48961523,2618.1,2618.0,0.10276179]
[1727329857459,0.8856043,2618.2,2617.8,6.1119]
[1727329857658,0.8856043,2618.2,2618.0,0.10276179]
[1727329857842,0.7901,2618.2,2618.0,0.10276179]
[1727329861597,0.7901,2618.2,2617.7,4.66343984]
[1727329861919,1.48973694,2618.2,2617.8,3.05598]
[1727329862059,1.48973694,2618.2,2617.8,3.15891262]
[1727329863202,0.0954994,2618.3,2617.9,2.25222984]
[1727329863371,0.0954994,2618.3,2618.0,3.05574]
[1727329863555,0.0954994,2618.3,2618.0,3.15865232]
[1727329865758,3.1509094,2618.3,2618.0,0.10291232]
[1727329865958,0.0954994,2618.3,2618.0,0.10291232]
[1727329866200,1.69465311,2618.3,2618.0,0.10291232]
[1727329867607,1.69465311,2618.3,2618.0,3.15867232]
[1727329867808,1.59915371,2618.3,2618.0,3.15867232]
[1727329868772,1.59915371,2618.3,2618.0,0.10291232]
[1727329870702,4.75008026,2618.3,2618.0,0.10291232]
[1727329870906,1.59915371,2618.2,2618.0,0.10291232]
[1727329871203,1.59915371,2618.2,2617.9,5.30809984]
[1727329871367,1.59915371,2618.2,2618.1,0.1023556]
[1727329871567,1.59915371,2618.2,2618.0,0.10236575]
[1727329871908,1.59915371,2618.2,2617.9,5.30809984]
[1727329871909,1.59915371,2618.2,2618.1,0.1023556]
[1727329872110,1.59915371,2618.2,2617.9,5.30809984]
[1727329872270,1.59915371,2618.2,2618.1,0.1023556]
[1727329872471,1.59915371,2618.2,2618.0,0.4425209]
[1727329872804,1.59915371,2618.2,2618.0,0.10236575]
[1727329874798,2.39485371,2618.1,2618.0,0.10236575]
[1727329875011,5.54600797,2618.1,2618.0,0.10236575]
[1727329875334,5.55241728,2618.1,2618.0,0.10241327]
[1727329875488,5.55241728,2618.1,2617.6,4.60742984]
[1727329875695,1.60556302,2618.0,2617.6,4.60742984]
[1727329875917,1.60556302,2618.0,2617.7,0.44266757]
[1727329876116,1.70106939,2618.0,2617.8,0.44266757]
[1727329876333,4.75684939,2618.0,2617.6,3.0]
[1727329877127,1.60556302,2617.9,2617.6,3.0]
[1727329877318,5.90448581,2618.0,2617.6,3.0]
[1727329877806,2.84870581,2618.0,2617.7,1.60742984]
[1727329878001,2.84870581,2618.0,2617.7,4.66353984]
[1727329878205,1.70106939,2618.0,2617.7,4.66353984]
[1727329878809,0.09550637,2618.0,2617.7,4.66353984]
[1727329879158,1.70106939,2618.0,2617.7,4.66353984]
[1727329879448,1.60556302,2618.0,2617.7,4.66353984]
[1727329879740,1.60556302,2618.0,2617.7,4.66346984]
[1727329879941,2.49677007,2618.1,2617.9,1.60742984]
[1727329880148,2.40126302,2618.1,2617.9,1.60742984]
[1727329880585,1.60556302,2618.1,2617.9,1.60742984]
[1727329881044,1.60556302,2618.1,2618.0,0.10241327]
[1727329881345,1.60556302,2618.2,2618.0,0.74721327]
[1727329881551,1.60556302,2618.2,2618.1,4.66307984]
[1727329881914,1.60556302,2618.2,2618.1,4.76557011]
[1727329883223,1.60556302,2618.3,2618.1,4.76557011]
[1727329884031,1.60556302,2618.3,2618.1,1.70992011]
[1727329884438,1.60556302,2618.3,2618.1,4.76555011]
[1727329886146,1.60556302,2618.3,2618.1,1.70992011]
[1727329887125,1.60556302,2618.3,2618.1,4.76554011]
[1727329887325,1.60556302,2618.4,2618.1,4.76554011]
[1727329887554,1.60556302,2618.3,2618.1,4.76554011]
[1727329887715,1.60556302,2618.4,2618.1,4.76554011]
[1727329887915,1.60556302,2618.3,2618.1,4.76554011]
[1727329888226,1.60556302,2618.4,2618.1,4.76554011]
[1727329889012,1.60556302,2618.4,2618.2,3.05545]
[1727329889271,1.60556302,2618.5,2618.2,3.05545]
[1727329889411,1.60556302,2618.5,2618.3,1.70989981]
[1727329892971,1.60556302,2618.5,2618.3,0.10246997]
[1727329893186,5.41246182,2618.5,2618.3,0.10246997]
[1727329893385,5.41246182,2618.5,2618.0,0.6448]
[1727329893386,1.60556302,2618.4,2618.0,2.25222984]
[1727329893675,1.60556302,2618.4,2618.1,0.102221]
[1727329896056,0.7775,2618.3,2618.1,0.102221]
[1727329896265,2.38306302,2618.3,2618.1,0.102221]
[1727329896779,2.47855925,2618.3,2618.1,0.102221]
[1727329901154,2.38306302,2618.3,2618.1,0.102221]
[1727329902083,0.7775,2618.3,2618.1,0.102221]
[1727329902672,1.70105856,2618.4,2618.1,0.102221]
[1727329905003,1.60556302,2618.4,2618.2,5.30774984]
[1727329905303,1.60556302,2618.8,2618.7,3.05495]
[1727329905604,0.45207117,2618.8,2618.7,4.76459538]
[1727329905790,1.60556302,2618.9,2618.7,1.70964538]
[1727329906099,1.60556302,2618.8,2618.7,0.10221554]
[1727329906313,2.04808656,2618.8,2618.7,0.10221554]
[1727329906757,2.04808656,2618.8,2618.5,3.05507]
[1727329906965,2.04808656,2618.8,2618.7,0.10221554]
[1727329907162,2.04808656,2618.8,2618.6,0.10222569]
[1727329907409,2.04808656,2618.8,2618.7,0.10221554]
[1727329907569,1.60556302,2618.8,2618.7,0.10221554]
[1727329907775,1.60556302,2618.8,2618.4,4.66266984]
[1727329908007,1.60556302,2618.8,2618.7,0.10221554]
[1727329908304,4.75575285,2618.9,2618.7,0.10221554]
[1727329908600,4.75575285,2618.9,2618.4,4.66266984]
[1727329908772,2.36300155,2618.8,2618.4,4.66266984]
[1727329908975,1.70103285,2618.9,2618.6,1.60742984]
[1727329909311,2.51443855,2619.0,2618.6,4.66242984]
[1727329909609,2.41896302,2619.0,2618.8,1.60742984]
[1727329909913,0.09547114,2619.1,2618.8,4.66223984]
[1727329909914,1.60556302,2619.1,2618.8,4.66223984]
[1727329910071,2.51183002,2619.2,2619.0,1.60742984]
[1727329910404,2.41636302,2619.2,2619.0,1.60742984]
[1727329910755,2.41636302,2619.2,2618.8,4.66219984]
[1727329910902,2.41636302,2619.2,2618.8,7.71696984]
[1727329911065,2.41636302,2619.2,2619.1,0.10217496]
[1727329911268,2.41636302,2619.2,2618.8,4.66219984]
[1727329911790,2.41636302,2619.2,2618.9,0.10219525]
[1727329912378,2.51182831,2619.2,2618.9,0.10219525]
[1727329913300,0.90626529,2619.2,2618.9,0.10219525]
[1727329914275,1.60556302,2619.3,2619.0,5.30675984]
[1727329914490,2.49452425,2619.4,2619.0,5.30675984]
[1727329914688,0.88896123,2619.4,2619.1,0.10159693]
[1727329916846,3.94310123,2619.4,2619.1,0.10159693]
[1727329917584,4.80336365,2619.4,2619.1,0.10159693]
[1727329918273,3.05426,2619.3,2619.1,0.10159693]
[1727329918386,0.09546345,2619.2,2619.1,0.10159693]
[1727329918587,3.14989345,2619.2,2618.7,3.05491]
[1727329918784,3.0546,2619.0,2618.6,2.25222984]
[1727329919013,3.15007135,2619.0,2618.6,2.25222984]
[1727329919725,0.09547135,2619.0,2618.7,3.0]
[1727329919883,0.86506952,2619.1,2618.8,1.60742984]
[1727329920725,3.91963952,2619.1,2618.8,1.60742984]
[1727329921079,4.61703647,2619.1,2618.8,1.60742984]
[1727329921320,1.56247647,2619.1,2618.7,3.0]
[1727329921525,3.91960952,2619.1,2618.7,3.0]
[1727329922542,0.86506952,2619.1,2618.7,3.0]
[1727329922736,0.09546952,2619.1,2618.8,1.60742984]
[1727329922889,0.55,2619.2,2618.8,4.66224984]
[1727329923087,0.09546764,2619.1,2618.8,4.66224984]
[1727329923316,0.8262,2619.6,2619.0,4.66201984]
[1727329923651,0.09545686,2619.5,2619.2,1.60742984]
[1727329924011,0.92165224,2619.6,2619.2,1.60742984]
[1727329924332,0.92165224,2619.6,2619.2,4.66172984]
[1727329924875,0.92165224,2619.6,2619.2,1.60742984]
[1727329925351,3.97561224,2619.6,2619.2,1.60742984]
[1727329925876,0.92165224,2619.6,2619.2,1.60742984]
[1727329926087,3.97558224,2619.6,2619.3,0.10068213]
[1727329926230,4.83908577,2619.6,2619.3,0.10068213]
[1727329926430,4.83908577,2619.6,2619.2,1.60742984]
[1727329926630,4.83908577,2619.6,2619.4,0.09905476]
[1727329926857,4.83908577,2619.6,2619.2,1.60742984]
[1727329927070,4.83908577,2619.6,2619.5,0.10056969]
[1727329927071,5.38905577,2619.6,2619.5,0.10056969]
[1727329927260,5.38905577,2619.6,2619.0,4.60742984]
[1727329927261,3.05419,2619.4,2619.0,4.60742984]
[1727329927565,3.14964808,2619.4,2619.0,4.60742984]
[1727329929551,0.09545808,2619.4,2619.0,4.60742984]
[1727329929763,0.09545808,2619.4,2619.0,7.66194984]
[1727329930079,3.14948804,2619.5,2619.0,7.66194984]
[1727329930379,3.59249804,2619.5,2619.0,7.66194984]
[1727329931042,3.59249804,2619.5,2619.2,4.66172984]
[1727329931043,0.09545804,2619.5,2619.2,4.66172984]
[1727329931242,0.92165089,2619.6,2619.2,7.71603984]
[1727329931464,0.92165089,2619.6,2619.2,4.66171984]
[1727329934003,3.97558089,2619.6,2619.2,1.60742984]
[1727329934212,3.97558089,2619.6,2619.2,4.66177984]
[1727329934377,3.97558089,2619.6,2619.3,0.09714748]
[1727329934565,4.67850598,2619.6,2619.2,4.66177984]
[1727329934772,4.67850598,2619.6,2619.4,0.09713734]
[1727329934972,7.73247598,2619.6,2619.0,7.71645984]
[1727329935169,0.09545282,2619.5,2619.0,7.71645984]
[1727329935375,0.86870042,2619.5,2619.1,3.05447]
[1727329936889,0.86870042,2619.5,2619.0,4.66193984]
[1727329938214,0.09545282,2619.5,2619.2,1.60742984]
[1727329938419,0.9216529,2619.6,2619.2,4.66172984]
[1727329940414,0.9216529,2619.6,2619.4,1.60742984]
[1727329940617,0.09544701,2619.8,2619.4,1.60742984]
[1727329940951,5.45140009,2620.4,2619.3,0.6448]
[1727329940952,0.7607,2620.4,2619.9,3.05354]
[1727329941115,0.7607,2620.4,2620.2,1.60742984]
[1727329941116,0.09544357,2620.3,2620.2,1.60742984]
[1727329941315,1.76096159,2620.4,2620.2,1.60742984]
[1727329941518,1.76096159,2620.4,2620.2,1.70440707]
[1727329941519,1.66554169,2620.4,2620.2,1.70440707]
[1727329941950,0.89427997,2620.5,2620.2,1.70440707]
[1727329942544,0.79886007,2620.5,2620.2,1.70440707]
[1727329943330,0.79886007,2620.5,2620.3,0.6448]
[1727329943509,0.79886007,2620.5,2620.4,1.60742984]
[1727329943919,0.79886007,2620.5,2620.4,1.7043868]
[1727329944121,3.85171007,2620.5,2620.4,1.7043868]
[1727329944325,3.85171007,2620.5,2620.4,0.09695696]
[1727329944636,0.79886007,2620.5,2620.1,7.17499867]
[1727329944823,0.79886007,2620.5,2620.4,0.09371932]
[1727329945032,0.79886007,2620.5,2620.1,7.17499867]
[1727329945345,0.79886007,2620.5,2620.4,0.09371932]
[1727329945548,0.79886007,2620.5,2620.1,7.17499867]
[1727329945758,0.89427589,2620.5,2620.4,0.09371932]
[1727329945907,0.79886007,2620.5,2620.4,0.09371932]
[1727329946111,0.79886007,2620.5,2620.1,7.17499867]
[1727329946311,0.79886007,2620.5,2620.4,0.09371932]
[1727329946616,1.19356864,2620.5,2620.4,0.09371932]
[1727329946816,1.19356864,2620.5,2620.1,4.12169867]
[1727329947018,0.79886007,2620.5,2620.4,0.09371932]
[1727329947217,0.79886007,2620.5,2620.1,4.12169867]
[1727329947528,0.79886007,2620.5,2620.4,0.09371932]
[1727329947739,0.79886007,2620.5,2620.1,7.17500867]
[1727329948250,0.79886007,2620.5,2620.2,0.09289457]
[1727329953595,0.79886007,2620.5,2620.3,3.47689867]
[1727329954294,0.79886007,2620.5,2620.4,0.0920609]
[1727329956919,0.79886007,2620.5,2620.1,7.17500867]
[1727329957089,0.79886007,2620.5,2620.4,0.0920609]
[1727329957416,0.79886007,2620.5,2620.1,7.17500867]
[1727329957590,0.79886007,2620.5,2620.4,0.0920609]
[1727329957916,1.19356854,2620.5,2620.1,7.17500867]
[1727329958117,0.79886007,2620.5,2620.1,7.17500867]
[1727329958419,0.79886007,2620.5,2620.2,0.09208117]
[1727329964305,0.79886007,2620.5,2620.3,1.60471294]
[1727329964719,0.79886007,2620.5,2620.4,0.0920609]
[1727329966734,0.79886007,2620.5,2620.4,3.7368609]
[1727329966895,0.79886007,2620.5,2620.4,6.7898209]
[1727329970522,0.79886007,2620.5,2620.4,8.39453384]
[1727329973056,0.79886007,2620.5,2620.4,6.7898209]
[1727329973264,0.79886007,2620.5,2620.4,8.39453384]
[1727329984890,0.79886007,2620.5,2620.4,4.69677384]
[1727329985066,0.79886007,2620.5,2620.4,7.74973384]
[1727329985685,0.79886007,2620.5,2620.4,1.69677384]
[1727329985686,1.59616007,2620.5,2620.4,1.69677384]
[1727329985888,2.06103908,2620.5,2620.4,1.69677384]
[1727329986683,1.59616007,2620.5,2620.4,1.69677384]
[1727329987474,1.59616007,2620.5,2620.4,4.74973384]
[1727329987674,0.79886007,2620.5,2620.4,4.74973384]
[1727329990204,0.79886007,2620.5,2620.4,1.69677384]
[1727329990906,0.79886007,2620.5,2620.4,4.74973384]
[1727329993391,0.79886007,2620.5,2620.4,1.69677384]
[1727329994484,0.79886007,2620.5,2620.4,4.74973384]
[1727329994999,0.79886007,2620.5,2620.4,1.69677384]
[1727329996063,1.11541238,2620.5,2620.4,1.69677384]
[1727329996265,1.11541238,2620.5,2620.4,4.74973384]
[1727329996266,0.79886007,2620.5,2620.4,4.74973384]
[1727329996566,0.79886007,2620.5,2620.4,1.69677384]
[1727329997166,1.62336007,2620.5,2620.4,1.69677384]
[1727329997371,1.94625238,2620.5,2620.4,1.69677384]
[1727329998016,1.94625238,2620.5,2620.4,0.0920609]
[1727329998304,1.94625238,2620.5,2620.0,1.60471294]
[1727329998305,6.3301654,2620.5,2620.0,1.60471294]
[1727329998614,0.755,2620.3,2620.1,0.08851247]
[1727329998773,2.36056302,2620.3,2620.1,0.08851247]
[1727329999104,4.54126954,2620.4,2620.1,0.08851247]
[1727329999105,0.8101,2620.2,2620.1,0.08851247]
[1727329999278,0.8101,2620.2,2620.1,1.69322541]
[1727330001287,0.8101,2620.2,2620.1,4.74653541]
[1727330001673,0.8101,2620.2,2620.1,1.69322541]
[1727330003310,0.8101,2620.2,2620.1,4.74653541]
[1727330004299,1.74388954,2620.4,2620.1,5.18816567]
[1727330004500,1.74388954,2620.4,2620.1,4.74653541]
[1727330005421,2.40442309,2620.5,2620.3,1.60471294]
[1727330005629,0.79886007,2620.5,2620.4,3.05296]
[1727330005918,0.79886007,2620.5,2620.4,7.22784528]
[1727330006809,0.79886007,2620.5,2620.4,6.58304528]
[1727330010500,0.79886007,2620.5,2620.4,7.25170636]
[1727330011190,0.00356,2621.0,2620.9,8.30189294]
[1727330011384,0.00356,2621.0,2620.9,8.74333041]
[1727330011618,0.00356,2621.0,2620.9,8.83095757]
[1727330012291,0.00356,2621.0,2620.9,10.700204]
[1727330013733,0.00356,2621.0,2620.9,7.22624463]
[1727330014033,0.00356,2621.0,2620.9,7.25001582]
[1727330018141,0.00356,2621.0,2620.9,6.80899592]
[1727330018500,0.00356,2621.0,2620.9,7.2491571]
[1727330019442,0.00356,2621.0,2620.9,6.80899592]
[1727330019937,0.00356,2621.0,2620.9,7.24900059]
[1727330021053,0.00356,2621.0,2620.9,6.80899592]
[1727330022014,0.00356,2621.0,2620.9,6.78522473]
[1727330022211,0.00356,2621.0,2620.9,6.14042473]
[1727330022534,0.00356,2621.0,2620.9,9.63816801]
[1727330022836,0.00356,2621.0,2620.9,9.6143841]
[1727330023972,0.00356,2621.0,2620.9,0.08804473]
[1727330024261,0.83356,2621.0,2620.9,6.6143841]
[1727330024568,0.00356,2621.0,2620.9,6.6143841]
[1727330025228,0.00356,2621.0,2620.9,9.6143841]
[1727330026754,0.00356,2621.0,2620.9,6.5620041]
[1727330027468,0.00356,2621.0,2620.9,3.08804473]
[1727330027676,0.00356,2621.0,2619.8,0.6448]
[1727330027677,0.55,2620.5,2619.8,0.6448]
[1727330027830,0.55,2620.5,2620.0,3.05335]
[1727330028031,0.55,2620.5,2619.9,3.05355]
[1727330028032,0.7998,2620.4,2619.9,3.05355]
[1727330028279,3.85279,2620.4,2619.8,6.52757937]
[1727330028441,3.05299,2620.4,2619.8,6.52757937]
[1727330028771,3.05299,2620.4,2619.6,6.10766]
[1727330028772,0.8324,2620.3,2619.6,6.10766]
[1727330028949,0.8324,2620.3,2619.6,3.05381]
[1727330028950,0.8324,2620.2,2619.6,3.05381]
[1727330029636,0.7661,2620.0,2619.5,3.47395937]
[1727330029851,0.38195,2619.9,2619.5,3.47395937]
[1727330030057,0.38195,2619.9,2619.5,6.52795937]
[1727330030638,0.38195,2619.9,2619.6,3.0]
[1727330031347,0.7661,2620.0,2619.6,3.0]
[1727330032071,3.8196,2620.0,2619.6,3.0]
[1727330033435,0.7661,2620.0,2619.6,3.0]
[1727330034336,0.7661,2620.0,2619.6,6.0539]
[1727330035135,0.7661,2620.0,2619.7,0.06983451]
[1727330035379,1.148048,2620.0,2619.7,0.06983451]
[1727330036779,4.201498,2620.0,2619.7,0.06983451]
[1727330037385,1.148048,2620.0,2619.7,0.06983451]
[1727330040384,4.201498,2620.0,2619.7,0.06983451]
[1727330041044,1.148048,2620.0,2619.7,0.06983451]
[1727330041783,0.7661,2620.0,2619.7,3.54379388]
[1727330041946,0.7661,2620.0,2619.7,6.59755388]
[1727330042668,0.7661,2620.0,2619.7,0.06983451]
[1727330043181,0.7661,2620.0,2619.7,3.12359451]
[1727330045406,1.148032,2620.0,2619.7,0.06983451]
[1727330045566,4.43596,2619.8,2619.7,0.06983451]
[1727330045764,4.43596,2619.8,2618.6,3.05503]
[1727330045765,3.05433,2619.3,2618.6,3.05503]
[1727330046014,0.7747,2619.2,2619.0,3.05454]
[1727330046154,0.7747,2619.5,2619.1,3.49791322]
[1727330046477,1.157556,2619.5,2619.1,0.05242092]
[1727330046652,3.05422,2619.4,2619.1,0.05242092]
[1727330046847,3.05422,2619.4,2618.7,3.47395937]
[1727330047053,3.05422,2619.4,2619.2,0.05067654]
[1727330047354,3.4754276,2619.3,2618.7,3.47395937]
[1727330047554,3.05425,2619.3,2618.7,3.47395937]
[1727330047754,3.05425,2619.3,2618.6,3.69979]
[1727330047755,3.82808,2619.2,2618.6,3.05499]
[1727330048862,3.82808,2619.2,2618.6,3.07898085]
[1727330049067,0.7737,2619.2,2618.7,3.47395937]
[1727330049299,0.7737,2619.2,2618.7,6.55287025]
[1727330049994,0.7737,2619.2,2618.7,9.60773025]
[1727330050164,0.7737,2619.2,2618.8,0.02397985]
[1727330051067,0.7737,2619.2,2618.8,3.07877985]
[1727330051556,0.7737,2619.2,2618.8,3.0]
[1727330051760,4.210871,2619.2,2618.8,3.0]
[1727330052109,3.05456,2619.1,2618.8,3.0]
[1727330052773,3.82808,2619.2,2618.8,3.0]
[1727330053797,0.7737,2619.2,2618.8,3.0]
[1727330054496,3.82807,2619.2,2618.8,3.0]
[1727330054796,4.516295,2619.2,2618.8,3.0]
[1727330055874,7.570735,2619.2,2618.8,3.0]
[1727330056193,3.05449,2619.1,2618.6,3.0]
[1727330057093,3.0548,2618.9,2618.6,3.0]
[1727330057292,3.0548,2618.9,2618.4,3.47395937]
[1727330057293,3.05495,2618.7,2618.2,0.6448]
[1727330057527,3.05495,2618.7,2618.1,6.56751847]
[1727330057803,0.7904,2618.8,2618.2,3.0555]
[1727330058202,1.229912,2618.8,2618.3,3.0554]
[1727330058504,0.7904,2618.8,2618.4,6.52923937]
[1727330058734,0.7873,2619.0,2618.6,6.52891937]
[1727330058873,0.7873,2619.0,2618.7,3.05494]
[1727330059280,3.84163,2619.3,2618.8,3.47395937]
[1727330059468,4.54074645,2619.3,2618.7,3.07891813]
[1727330061070,4.54074645,2619.3,2618.8,0.0346145]
[1727330061421,4.54072645,2619.3,2618.7,3.07891813]
[1727330061708,4.54072645,2619.3,2618.9,0.03460435]
[1727330061874,4.54072645,2619.3,2619.0,0.03459421]
[1727330061875,1.48641645,2619.3,2619.0,0.03459421]
[1727330062077,0.7873,2619.3,2619.0,0.03459421]
[1727330062475,3.84155,2619.3,2619.0,0.03459421]
[1727330062675,3.84155,2619.3,2618.8,3.05483]
[1727330062874,3.84155,2619.3,2619.1,0.03458406]
[1727330063077,3.84155,2619.3,2618.8,6.1096]
[1727330063078,0.7873,2619.3,2618.8,6.1096]
[1727330063309,0.7873,2619.3,2618.9,0.0239774]
[1727330063515,0.7873,2619.3,2618.9,3.7234774]
[1727330063688,0.7873,2619.3,2619.0,0.03459421]
[1727330064211,0.7873,2619.3,2618.8,3.05472]
[1727330064212,0.7873,2619.3,2618.9,0.02397741]
[1727330064412,0.7873,2619.3,2619.1,0.03458406]
[1727330064601,0.7873,2619.3,2619.0,0.03459421]
[1727330064800,0.7873,2619.3,2619.2,0.03457392]
[1727330065015,0.8123,2619.6,2619.1,3.11296138]
[1727330065315,0.8123,2619.6,2619.2,0.03457392]
[1727330066216,3.86622,2619.6,2619.2,0.03457392]
[1727330066816,3.86622,2619.6,2619.0,3.07846898]
[1727330066978,3.86622,2619.6,2619.3,0.03462691]
[1727330067320,0.8123,2619.6,2619.2,3.47395937]
[1727330067620,0.8123,2619.6,2619.3,0.03427177]
[1727330067923,0.8123,2619.6,2619.2,3.49791816]
[1727330068291,0.8123,2619.6,2619.3,0.03425599]
[1727330068610,0.8123,2619.6,2619.2,3.49791816]
[1727330068828,0.8123,2619.6,2619.4,0.03424585]
[1727330069031,0.8123,2619.6,2619.3,0.03425599]
[1727330069234,0.8123,2619.6,2619.5,0.03423571]
[1727330069399,0.8123,2619.6,2619.4,0.03424585]
[1727330069594,0.8123,2619.6,2619.5,0.03423571]
[1727330069802,1.504296,2619.6,2619.5,0.03423571]
[1727330070040,4.558256,2619.6,2619.1,3.0]
[1727330070237,3.86626,2619.6,2619.5,0.03421993]
[1727330070698,3.86626,2619.6,2619.1,3.0]
[1727330071124,3.86626,2619.6,2619.2,0.03425035]
[1727330071441,0.8123,2619.6,2619.2,0.03425035]
[1727330071935,3.86622,2619.6,2619.2,0.03425035]
[1727330074617,0.8123,2619.6,2619.2,3.08859035]
[1727330075046,0.8123,2619.6,2619.3,0.02395106]
[1727330075228,0.8123,2619.6,2619.2,3.08859035]
[1727330075440,3.8662,2619.6,2619.4,0.03422218]
[1727330075649,3.8662,2619.6,2619.3,0.03423232]
[1727330075956,3.8662,2619.6,2619.4,0.03422218]
[1727330076163,3.8662,2619.6,2619.1,6.07841106]
[1727330076373,0.8123,2619.6,2619.2,3.53003265]
[1727330076542,0.8123,2619.6,2619.2,3.08855246]
[1727330076950,0.8123,2619.6,2619.2,0.03424246]
[1727330076951,3.86621,2619.6,2619.2,0.03424246]
[1727330077270,3.86622,2619.6,2619.2,0.03424246]
[1727330077472,6.92018,2619.6,2619.2,0.03424246]
[1727330077636,3.05409,2619.5,2619.2,0.03424246]
[1727330077841,3.86622,2619.6,2619.2,0.03424246]
[1727330078059,3.05403,2619.5,2619.2,0.03424246]
[1727330078267,4.252842,2619.6,2619.2,0.03424246]
[1727330079971,3.05404,2619.5,2619.0,6.05457]
[1727330080146,3.05404,2619.5,2619.1,0.03407111]
[1727330080349,4.252842,2619.6,2619.1,0.03407111]
[1727330080547,4.252842,2619.6,2619.1,3.08854111]
[1727330081547,3.82523,2619.4,2619.1,0.03407111]
[1727330082778,0.7711,2619.4,2619.1,0.03407111]
[1727330083147,0.7711,2619.4,2619.1,3.08852111]
[1727330085797,0.7711,2619.4,2619.1,0.03407111]
[1727330086413,3.82527,2619.4,2619.1,0.03407111]
[1727330086701,4.5518602,2619.4,2619.1,0.03407111]
[1727330086997,4.5518602,2619.4,2619.2,0.03408463]
[1727330087362,4.5518602,2619.4,2618.9,6.05466]
[1727330087566,4.5518602,2619.4,2619.0,0.47630425]
[1727330087767,4.5518602,2619.4,2619.0,0.03410492]
[1727330088195,0.45518602,2619.3,2619.0,0.03410492]
[1727330089409,3.82527,2619.4,2619.0,3.08869492]
[1727330089716,0.7711,2619.4,2619.0,3.08869492]
[1727330091603,0.7711,2619.4,2619.1,0.44263351]
[1727330091982,0.7711,2619.4,2619.2,0.0341951]